bitfinex-derivatives/quotes_BNBF0:USTF0_20250406
["timestamp","ask_amount","ask_price","bid_price","bid_amount"]
[1743966787273,1.18,554.67,553.08,0.36161134]
[1743966788777,1.18,554.67,553.26,1.32342827]
[1743966788977,1.18,554.67,553.28,0.36148062]
[1743966791378,1.18,554.67,553.45,1.32342827]
[1743966792672,1.263,554.66,553.45,1.32342827]
[1743966792873,1.263,554.66,553.47,0.36135653]
[1743966793477,1.263,554.66,553.65,1.32342827]
[1743966794279,1.263,554.66,553.67,0.361226]
[1743966798480,0.923,554.65,553.67,0.361226]
[1743966800475,0.879,554.64,553.67,0.361226]
[1743966800675,1.726,554.64,553.67,0.361226]
[1743966804685,0.818,554.63,553.67,0.361226]
[1743966807085,0.818,554.63,553.71,1.33397545]
[1743966807286,0.818,554.63,553.73,0.36118686]
[1743966814180,0.818,554.63,553.91,1.33397545]
[1743966814386,1.3,554.62,553.91,1.33397545]
[1743966815980,1.189,554.61,553.91,1.33397545]
[1743966816180,1.189,554.61,553.84,1.33397545]
[1743966817785,1.189,554.61,553.85,0.3611086]
[1743966818188,1.189,554.61,554.07,1.33397545]
[1743966818686,1.1,554.6,554.07,1.33397545]
[1743966819491,1.1,554.6,554.08,0.3609587]
[1743966820290,1.1,554.6,554.08,1.69493415]
[1743966822387,1.1,554.6,554.08,0.3609587]
[1743966823591,1.023,554.59,554.08,0.3609587]
[1743966824691,1.023,554.59,554.17,1.33397545]
[1743966827495,1.337,554.58,554.08,0.3609587]
[1743966828796,1.482,554.58,554.08,0.3609587]
[1743966829896,1.482,554.58,554.08,1.69493415]
[1743966831399,1.482,554.58,554.29,1.33397545]
[1743966831598,1.482,554.58,554.3,0.36081544]
[1743966832198,1.482,554.58,554.3,1.69479089]
[1743966835198,1.482,554.58,554.3,0.36081544]
[1743966837106,1.482,554.58,554.31,1.33397545]
[1743966837305,1.482,554.58,554.32,0.36080242]
[1743966841904,1.482,554.58,554.32,1.69477787]
[1743966843612,0.145,554.58,554.32,1.69477787]
[1743966844711,0.145,554.58,554.46,1.33397545]
[1743966844911,0.145,554.58,554.47,0.36070481]
[1743966846908,0.3094479,554.59,554.47,0.36070481]
[1743966847113,2.406,554.69,554.47,0.36070481]
[1743966847507,1.186,554.69,554.47,0.36070481]
[1743966850018,1.186,554.69,554.67,1.33397545]
[1743966850315,1.186,554.69,554.68,0.36056825]
[1743966851915,2.359,554.71,554.68,0.36056825]
[1743966852120,1.96509231,554.71,554.68,0.36056825]
[1743966852419,1.166,554.71,554.68,0.36056825]
[1743966853318,2.028,554.86,554.68,0.36056825]
[1743966853621,0.337,555.8,554.68,0.36056825]
[1743966853818,0.884,555.28,554.68,0.36056825]
[1743966855920,2.143,555.28,554.68,0.36056825]
[1743966856621,2.143,555.28,554.69,1.32761379]
[1743966857723,2.143,555.28,554.7,0.36055525]
[1743966868835,0.807,555.27,554.7,0.36055525]
[1743966873033,0.807,555.27,554.79,1.32761379]
[1743966873235,0.807,555.27,554.86,1.32761379]
[1743966873434,0.807,555.27,554.87,0.36044478]
[1743966875436,1.866,555.43,554.87,0.36044478]
[1743966876042,1.866,555.43,555.01,1.32761379]
[1743966876242,1.866,555.43,555.02,0.36034737]
[1743966877043,1.271,555.71,555.02,0.36034737]
[1743966878241,1.271,555.71,555.13,1.32761379]
[1743966878444,1.271,555.71,555.14,0.36026948]
[1743966880846,1.271,555.71,555.16,1.32761379]
[1743966881141,1.271,555.71,555.17,0.36025001]
[1743966892955,1.232,555.7,555.17,0.36025001]
[1743966903972,1.232,555.7,555.42,1.32761379]
[1743966904270,1.232,555.7,555.43,0.36008137]
[1743966905669,1.232,555.7,555.56,1.32761379]
[1743966907869,0.337,555.92,555.56,1.32761379]
[1743966908869,0.337,555.92,555.57,0.35999064]
[1743966909275,0.337,555.92,555.66,1.32761379]
[1743966911675,0.337,555.92,555.68,1.33871163]
[1743966913271,0.337,555.92,555.69,0.3599129]
[1743966916073,0.337,555.92,555.7,1.33871163]
[1743966916279,0.337,555.92,555.71,0.35989994]
[1743966918680,0.337,555.92,555.53,1.33871163]
[1743966920182,3.527,556.05,555.53,1.33871163]
[1743966920975,3.527,556.05,555.18,1.33871163]
[1743966921181,3.527,556.05,555.2,0.36023054]
[1743966921378,1.202,556.04,555.2,0.36023054]
[1743966922685,0.337,556.03,555.2,0.36023054]
[1743966925085,0.337,556.03,555.38,1.33871163]
[1743966925286,0.337,556.03,555.39,0.36010731]
[1743966925487,2.209,556.02,555.39,0.36010731]
[1743966929480,1.012,556.01,555.39,0.36010731]
[1743966935391,1.012,556.01,555.54,1.33871163]
[1743966935586,1.012,556.01,555.55,0.3600036]
[1743966937093,0.337,556.0,555.55,0.3600036]
[1743966943394,0.337,556.0,555.58,1.33871163]
[1743966943594,0.337,556.0,555.59,0.35997768]
[1743966945395,0.337,556.0,555.63,1.33871163]
[1743966946291,0.337,556.0,555.64,0.35994528]
[1743966946994,2.209,556.02,555.64,0.35994528]
[1743966947195,1.01512819,556.08,555.64,0.35994528]
[1743966947399,1.01512819,556.08,555.9,1.33871163]
[1743966949493,1.01512819,556.08,555.91,0.35977046]
[1743966950295,0.972,557.04,555.91,0.35977046]
[1743966950296,0.972,557.04,556.01,1.33871163]
[1743966950599,0.972,557.04,556.02,0.35969929]
[1743966953000,0.882,556.63,556.02,0.35969929]
[1743966963716,0.901,556.62,556.02,0.35969929]
[1743966970120,1.235,557.03,556.02,0.35969929]
[1743966975523,1.119,557.13,556.02,0.35969929]
[1743966975917,1.11,557.23,556.02,0.35969929]
[1743966979723,1.292,557.43,556.02,0.35969929]
[1743966981924,0.901,557.58,556.02,0.35969929]
[1743966982129,0.901,557.58,556.03,1.33871163]
[1743966983929,0.901,557.58,556.97,1.33871163]
[1743966984432,0.901,557.58,556.98,0.35907932]
[1743966992633,1.942,557.83,556.98,0.35907932]
[1743966996642,3.149,557.83,556.98,0.35907932]
[1743967003740,2.345,557.83,556.98,0.35907932]
[1743967006145,2.345,557.83,557.17,1.33871163]
[1743967006344,1.138,557.83,557.17,1.33871163]
[1743967006544,0.958,557.88,557.17,1.33871163]
[1743967008643,0.958,557.88,557.18,0.35895042]
[1743967009346,0.958,557.88,557.52,1.33871163]
[1743967009546,0.958,557.88,557.53,0.35872509]
[1743967010041,1.247,557.93,557.53,0.35872509]
[1743967011943,1.247,557.93,557.74,1.33871163]
[1743967012145,1.247,557.93,557.75,0.35858359]
[1743967012947,0.894,558.08,557.75,0.35858359]
[1743967016545,0.894,558.08,557.76,1.33871163]
[1743967017045,0.894,558.08,557.77,0.35857073]
[1743967018854,2.32,558.14,557.77,0.35857073]
[1743967021454,2.32,558.14,557.85,1.33871163]
[1743967022951,2.32,558.14,557.86,0.35851288]
[1743967025550,1.084,558.14,557.86,0.35851288]
[1743967039770,1.268,558.24,557.86,0.35851288]
[1743967044276,1.268,558.24,557.27,1.33871163]
[1743967044474,1.268,558.24,557.29,0.35887957]
[1743967044671,0.91,558.32,557.29,0.35887957]
[1743967045277,1.878,558.32,557.33,1.33871163]
[1743967045476,1.878,558.32,557.34,0.35884738]
[1743967046378,0.66989782,558.31,557.34,0.35884738]
[1743967046578,1.37405539,558.31,557.34,0.35884738]
[1743967047277,2.04339954,558.31,557.34,0.35884738]
[1743967047478,1.59553547,558.3,557.34,0.35884738]
[1743967047679,3.63893501,558.3,557.34,0.35884738]
[1743967047980,3.95083284,558.29,557.34,0.35884738]
[1743967048278,2.26417085,558.28,557.34,0.35884738]
[1743967048978,1.37405539,558.27,557.34,0.35884738]
[1743967049178,3.63822624,558.27,557.34,0.35884738]
[1743967049379,3.63653571,558.26,557.34,0.35884738]
[1743967049572,2.26248032,558.25,557.34,0.35884738]
[1743967049772,1.37405539,558.24,557.34,0.35884738]
[1743967049977,3.63550064,558.24,557.34,0.35884738]
[1743967050178,2.26144525,558.23,556.85,1.33871163]
[1743967050381,0.35828809,558.21,556.86,0.3591567]
[1743967050580,2.26144525,558.2,556.86,0.3591567]
[1743967050781,2.5911827,558.19,556.86,0.3591567]
[1743967050981,3.96523809,558.18,556.86,0.3591567]
[1743967051176,2.26144525,558.17,556.86,0.3591567]
[1743967051379,2.5911827,558.16,556.86,0.3591567]
[1743967051578,2.94950931,558.15,556.86,0.3591567]
[1743967051776,4.32357112,558.14,556.86,0.3591567]
[1743967051976,2.94952215,558.13,556.86,0.3591567]
[1743967052179,2.94952857,558.12,556.86,0.3591567]
[1743967052377,4.32359038,558.11,556.86,0.3591567]
[1743967052684,2.94954141,558.1,556.86,0.3591567]
[1743967052882,2.94954783,558.09,556.86,0.3591567]
[1743967053077,2.94955425,558.08,556.86,0.3591567]
[1743967053277,2.94956068,558.07,556.86,0.3591567]
[1743967053482,4.32362249,558.06,556.86,0.3591567]
[1743967053680,2.61983607,558.05,556.86,0.3591567]
[1743967053881,3.99389788,558.04,556.86,0.3591567]
[1743967054079,2.94965654,558.03,556.86,0.3591567]
[1743967054279,4.32371835,558.02,556.86,0.3591567]
[1743967054478,2.59125287,558.01,556.86,0.3591567]
[1743967054684,3.96530826,558.0,556.86,0.3591567]
[1743967054881,2.59125287,557.99,556.86,0.3591567]
[1743967055079,2.59125287,557.98,556.86,0.3591567]
[1743967055282,2.59125287,557.97,556.86,0.3591567]
[1743967055483,2.26144525,557.96,556.86,0.3591567]
[1743967055683,1.37405539,557.98,556.86,0.3591567]
[1743967055684,2.94973541,557.95,556.86,0.3591567]
[1743967055982,3.96533575,557.94,556.86,0.3591567]
[1743967056282,2.94974826,557.93,556.86,0.3591567]
[1743967056481,4.32381008,557.92,556.86,0.3591567]
[1743967056680,2.94976111,557.91,556.86,0.3591567]
[1743967056884,1.37405539,557.92,556.86,0.3591567]
[1743967056885,2.94976754,557.9,556.86,0.3591567]
[1743967057081,2.94977396,557.89,556.86,0.3591567]
[1743967057285,2.61994528,557.88,556.86,0.3591567]
[1743967057484,3.96533575,557.87,556.86,0.3591567]
[1743967057684,2.59128036,557.86,556.86,0.3591567]
[1743967057881,3.63550064,557.85,556.86,0.3591567]
[1743967058085,2.59128036,557.84,556.02,1.33871163]
[1743967058287,3.96533575,557.83,556.04,0.35968635]
[1743967058489,2.59128036,557.82,556.04,0.35968635]
[1743967058682,3.96533575,557.81,556.04,0.35968635]
[1743967058885,2.59128036,557.8,556.04,0.35968635]
[1743967059083,2.59128036,557.79,556.05,0.31240602]
[1743967059288,4.32390005,557.78,556.07,0.35966694]
[1743967059484,2.59128036,557.77,556.07,0.35966694]
[1743967059689,2.94985752,557.76,556.07,0.35966694]
[1743967059890,2.94986395,557.75,556.07,0.35966694]
[1743967060088,3.96533575,557.74,556.07,0.35966694]
[1743967060284,2.26144525,557.73,556.07,0.35966694]
[1743967060485,0.68843799,557.72,556.07,0.35966694]
[1743967060690,0.32983511,557.71,556.07,0.35966694]
[1743967060890,0.32983511,557.7,556.07,0.35966694]
[1743967061093,0.32983511,557.69,556.07,0.35966694]
[1743967061391,1.73268399,557.68,556.07,0.35966694]
[1743967061591,0.32983511,557.67,556.07,0.35966694]
[1743967061993,0.32983511,557.66,556.07,0.35966694]
[1743967062188,2.37219958,557.66,556.07,0.35966694]
[1743967062389,1.59313617,557.65,556.07,0.35966694]
[1743967062590,0.32983511,557.64,556.07,0.35966694]
[1743967062793,0.32983511,557.63,556.07,0.35966694]
[1743967062993,2.59128036,557.63,556.07,0.35966694]
[1743967063194,0.99814419,557.62,556.07,0.35966694]
[1743967063397,1.95514419,557.62,556.07,0.35966694]
[1743967063597,4.24863221,557.61,556.07,0.35966694]
[1743967063795,2.54590614,557.6,556.07,0.35966694]
[1743967063996,0.98413907,557.59,556.07,0.35966694]
[1743967064196,0.32983511,557.58,556.07,0.35966694]
[1743967064395,0.35869935,557.57,556.07,0.35966694]
[1743967064596,0.32983511,557.56,556.07,0.35966694]
[1743967065096,2.32759185,557.56,556.07,0.35966694]
[1743967065300,1.43283511,557.55,556.07,0.35966694]
[1743967065599,1.103,557.55,556.07,0.35966694]
[1743967065793,0.68875057,557.54,556.07,0.35966694]
[1743967065992,0.33003192,557.53,556.07,0.35966694]
[1743967067292,0.32994808,557.52,556.07,0.35966694]
[1743967067496,0.32994808,557.53,556.07,0.35966694]
[1743967067696,0.32994808,557.51,556.07,0.35966694]
[1743967067999,0.32994808,557.5,556.07,0.35966694]
[1743967068399,0.3123962,557.52,556.07,0.35966694]
[1743967068803,0.35871865,557.54,556.07,0.35966694]
[1743967068996,1.103,557.55,556.07,0.35966694]
[1743967069194,1.41536256,557.55,556.07,0.35966694]
[1743967070100,1.103,557.55,556.07,0.35966694]
[1743967082007,1.103,557.55,556.35,1.33871163]
[1743967082208,1.157,557.54,556.35,1.33871163]
[1743967083813,1.157,557.54,556.16,1.33871163]
[1743967084013,1.012,557.53,556.16,1.33871163]
[1743967084912,0.851,557.52,556.16,1.33871163]
[1743967085516,0.851,557.52,556.17,1.33871163]
[1743967087216,0.851,557.52,556.4,1.33871163]
[1743967089317,0.851,557.52,556.51,1.33871163]
[1743967092115,0.851,557.52,556.52,1.33871163]
[1743967092514,1.27,557.51,556.52,1.33871163]
[1743967094920,1.27,557.51,556.41,1.33871163]
[1743967096517,1.27,557.51,556.58,1.33871163]
[1743967097421,1.27,557.51,556.6,0.35932446]
[1743967099423,1.27,557.51,556.84,1.33871163]
[1743967099722,1.108,557.83,556.84,1.33871163]
[1743967102622,1.108,557.83,557.01,1.33871163]
[1743967104422,1.108,557.83,556.79,1.60077054]
[1743967104423,1.108,557.83,557.02,1.33871163]
[1743967104622,1.108,557.83,557.04,0.35904064]
[1743967106630,1.108,557.83,557.16,1.33871163]
[1743967107429,1.108,557.83,557.17,0.35895687]
[1743967110134,3.113,558.03,557.17,0.35895687]
[1743967111931,3.113,558.03,557.3,1.33871163]
[1743967113932,3.113,558.03,557.19,1.32761379]
[1743967113933,3.953,558.03,557.24,1.33871163]
[1743967115142,3.148,558.03,557.24,1.33871163]
[1743967115942,3.148,558.03,557.17,1.68657066]
[1743967115943,2.0,558.03,557.17,0.35895687]
[1743967120042,1.087,558.02,557.17,0.35895687]
[1743967124252,1.087,558.02,557.33,1.33871163]
[1743967124452,1.087,558.02,557.34,0.35884738]
[1743967128652,1.087,558.02,557.48,1.33871163]
[1743967129056,1.087,558.02,557.49,0.35875082]
[1743967133955,0.84,558.03,557.49,0.35875082]
[1743967134260,0.874,558.02,557.49,0.35875082]
[1743967134856,2.16,558.01,557.49,0.35875082]
[1743967137661,2.16,558.01,557.42,1.33871163]
[1743967137961,0.836,558.0,557.42,1.33871163]
[1743967139663,0.836,558.0,557.3,0.31180002]
[1743967139664,0.836,558.0,557.41,1.33871163]
[1743967141264,1.008,557.99,557.41,1.33871163]
[1743967142763,1.008,557.99,557.15,1.33871163]
[1743967145166,1.008,557.99,556.89,1.33871163]
[1743967146866,2.38353611,557.99,556.89,1.33871163]
[1743967147166,2.26143484,557.98,556.89,1.33871163]
[1743967147365,1.5986466,557.98,556.89,1.33871163]
[1743967147566,1.5986466,557.98,556.6,1.60077054]
[1743967147567,1.37553611,557.97,556.75,1.33871163]
[1743967147763,3.63512729,557.97,556.75,1.33871163]
[1743967147965,3.27568393,557.96,556.75,1.33871163]
[1743967148161,0.66222319,557.95,556.75,1.33871163]
[1743967148368,1.37553611,557.95,556.75,1.33871163]
[1743967148562,3.63493237,557.95,556.75,1.33871163]
[1743967148766,1.59746074,557.94,556.75,1.33871163]
[1743967149067,1.016,557.96,556.75,1.33871163]
[1743967149962,1.016,557.96,556.48,1.33871163]
[1743967150167,1.016,557.96,556.6,0.31208523]
[1743967150468,1.016,557.96,556.48,1.33871163]
[1743967151062,1.278,557.95,556.48,1.33871163]
[1743967151262,1.278,557.95,556.49,0.31210203]
[1743967151962,2.6502123,557.95,556.49,0.31210203]
[1743967153467,3.5712123,557.95,556.49,0.31210203]
[1743967153870,1.3722123,557.94,556.49,0.31210203]
[1743967154169,3.6255167,557.94,556.49,0.31210203]
[1743967154368,2.2533044,557.93,556.49,0.31210203]
[1743967154668,0.66035772,557.92,556.49,0.31210203]
[1743967154868,0.66035772,557.92,556.35,1.32761379]
[1743967154869,2.6802123,557.92,556.29,1.33871163]
[1743967155070,2.25333934,557.91,556.29,1.33871163]
[1743967155266,1.3722123,557.9,556.29,1.33871163]
[1743967155469,3.62555164,557.9,556.29,1.33871163]
[1743967155669,3.62555164,557.89,556.29,1.33871163]
[1743967155870,2.25333934,557.88,556.29,1.33871163]
[1743967156064,1.3722123,557.87,556.29,1.33871163]
[1743967156265,3.62555164,557.87,556.3,0.31221543]
[1743967156469,2.25333934,557.86,556.3,0.31221543]
[1743967156769,3.62555164,557.86,556.3,0.31221543]
[1743967156966,2.25333934,557.85,556.3,0.31221543]
[1743967157268,1.3722123,557.84,556.3,0.31221543]
[1743967157469,3.62555164,557.84,556.3,0.31221543]
[1743967157668,3.62555164,557.83,556.3,0.31221543]
[1743967157871,1.3722123,557.83,555.83,1.33871163]
[1743967158668,2.96108345,557.88,555.83,1.33871163]
[1743967158867,1.3722123,557.88,555.83,1.33871163]
[1743967159072,0.31224484,557.9,555.84,0.31225185]
[1743967159367,1.308,557.92,555.84,0.31225185]
[1743967160972,1.308,557.92,555.69,1.33871163]
[1743967161670,1.308,557.92,556.12,1.33871163]
[1743967161968,3.33780798,557.92,556.12,1.33871163]
[1743967162173,2.55620182,557.91,556.12,1.33871163]
[1743967162473,2.02980798,557.9,556.12,1.33871163]
[1743967162667,1.5863739,557.89,556.12,1.33871163]
[1743967162873,2.9585862,557.89,556.12,1.33871163]
[1743967163068,1.5863739,557.88,556.12,1.33871163]
[1743967163272,1.3722123,557.89,556.12,1.33871163]
[1743967163473,2.02950029,557.9,556.12,1.33871163]
[1743967163674,2.02950029,557.9,555.95,0.31223224]
[1743967163675,1.5863739,557.89,555.95,0.31223224]
[1743967163974,1.3722123,557.9,555.95,0.31223224]
[1743967164472,0.31223224,557.91,555.95,0.31223224]
[1743967165376,1.68444454,557.91,555.95,0.31223224]
[1743967165577,3.27002248,557.91,555.95,0.31223224]
[1743967165875,1.3722123,557.9,555.95,0.31223224]
[1743967166076,1.3722123,557.9,555.95,1.65094387]
[1743967166977,1.3722123,557.9,555.95,1.33871163]
[1743967167277,2.02931315,557.9,555.95,1.33871163]
[1743967167470,2.95779024,557.89,555.95,1.33871163]
[1743967167672,0.65710085,557.88,556.16,1.33871163]
[1743967167878,2.24267879,557.88,556.16,1.33871163]
[1743967168281,1.68446135,557.87,556.16,1.33871163]
[1743967168472,3.92714014,557.87,556.16,1.33871163]
[1743967168674,3.61489109,557.86,556.16,1.33871163]
[1743967168878,2.24267879,557.85,556.16,1.33871163]
[1743967169178,1.3722123,557.84,556.16,1.33871163]
[1743967169380,0.32983262,557.83,556.16,1.33871163]
[1743967169580,1.3722123,557.82,556.16,1.33871163]
[1743967169786,0.32983262,557.81,556.16,1.33871163]
[1743967170080,1.3722123,557.8,556.16,1.33871163]
[1743967170280,0.32983262,557.79,556.16,1.33871163]
[1743967170482,1.91541056,557.79,556.16,1.33871163]
[1743967170681,0.31227006,557.79,556.16,1.33871163]
[1743967170879,1.7019886,557.78,556.16,1.33871163]
[1743967171082,1.3722123,557.78,556.16,1.33871163]
[1743967171280,0.31227006,557.79,556.16,1.33871163]
[1743967171784,0.31227006,557.79,556.08,0.31227006]
[1743967172083,0.816,557.85,556.08,0.31227006]
[1743967172883,0.816,557.85,555.83,1.33871163]
[1743967173083,0.816,557.85,555.93,0.35975752]
[1743967173282,0.816,557.85,556.08,0.31226025]
[1743967173481,0.816,557.85,556.1,0.35964754]
[1743967173683,0.816,557.85,556.4,1.33871163]
[1743967175190,0.816,557.85,556.42,0.35944071]
[1743967175391,2.18029464,557.85,556.42,0.35944071]
[1743967175590,1.58524968,557.84,556.42,0.35944071]
[1743967175790,1.36429464,557.84,556.42,0.35944071]
[1743967176195,0.974,557.83,556.42,0.35944071]
[1743967178197,1.63148983,557.83,556.42,0.35944071]
[1743967178397,1.36429464,557.82,556.42,0.35944071]
[1743967178595,2.02178447,557.82,556.42,0.35944071]
[1743967178796,1.91589186,557.81,556.42,0.35944071]
[1743967178996,2.35159266,557.8,556.42,0.35944071]
[1743967179196,3.69239302,557.79,556.42,0.35944071]
[1743967179393,2.57339302,557.78,556.42,0.35944071]
[1743967179593,0.98730935,557.77,556.42,0.35944071]
[1743967179797,0.32980819,557.76,556.42,0.35944071]
[1743967180001,2.57339302,557.76,556.42,0.35944071]
[1743967180301,2.0217958,557.75,556.42,0.35944071]
[1743967180499,1.58608367,557.74,556.42,0.35944071]
[1743967180700,2.24358483,557.74,556.42,0.35944071]
[1743967180900,1.36429464,557.73,556.42,0.35944071]
[1743967181101,2.95037831,557.73,556.42,0.35944071]
[1743967181296,1.36429464,557.73,556.42,0.35944071]
[1743967181499,2.67329464,557.78,556.42,0.35944071]
[1743967181796,2.67329464,557.78,556.5,1.33871163]
[1743967182002,1.58598625,557.77,556.5,1.33871163]
[1743967182198,1.36429464,557.77,556.5,1.33871163]
[1743967182599,1.36429464,557.77,556.52,0.35937612]
[1743967182894,2.67329464,557.78,556.52,0.35937612]
[1743967183202,0.31220843,557.76,556.52,0.35937612]
[1743967183503,2.67329464,557.78,556.52,0.35937612]
[1743967184204,2.67329464,557.78,556.66,1.33871163]
[1743967184404,2.67329464,557.78,556.68,0.35927283]
[1743967184802,0.31219022,557.77,556.68,0.35927283]
[1743967185004,2.55703359,557.77,556.68,0.35927283]
[1743967185204,2.24552476,557.76,556.68,0.35927283]
[1743967185406,1.0166496,557.76,556.68,0.35927283]
[1743967185602,1.58763288,557.75,556.68,0.35927283]
[1743967185801,2.60437276,557.76,556.68,0.35927283]
[1743967186006,2.2457956,557.75,556.68,0.35927283]
[1743967186306,2.2457956,557.74,556.68,0.35927283]
[1743967186506,1.58763288,557.73,556.68,0.35927283]
[1743967186707,1.36429464,557.72,556.68,0.35927283]
[1743967187102,1.36429464,557.71,556.68,0.35927283]
[1743967187304,3.61009024,557.71,556.68,0.35927283]
[1743967187503,2.2457956,557.7,556.68,0.35927283]
[1743967187708,1.36429464,557.69,556.68,0.35927283]
[1743967188109,1.043,557.7,556.68,0.35927283]
[1743967189010,1.36429464,557.69,556.68,0.35927283]
[1743967189311,2.02311468,557.69,556.68,0.35927283]
[1743967189510,2.24810065,557.68,556.68,0.35927283]
[1743967189709,2.0234586,557.67,556.68,0.35927283]
[1743967189915,1.58928061,557.66,556.68,0.35927283]
[1743967190116,2.95357525,557.65,556.68,0.35927283]
[1743967190310,2.24844457,557.64,556.68,0.35927283]
[1743967190508,1.58928061,557.63,556.68,0.35927283]
[1743967190708,1.58928061,557.62,556.68,0.35927283]
[1743967190909,1.58928061,557.61,556.68,0.35927283]
[1743967191105,2.24844457,557.61,556.68,0.35927283]
[1743967191309,2.95357525,557.6,556.68,0.35927283]
[1743967191507,0.65916396,557.59,556.68,0.35927283]
[1743967191905,1.36429464,557.58,556.68,0.35927283]
[1743967192609,1.36429464,557.57,556.68,0.35927283]
[1743967193012,1.36429464,557.56,556.68,0.35927283]
[1743967193909,1.36429464,557.55,556.68,0.35927283]
[1743967194110,2.68929464,557.55,556.68,0.35927283]
[1743967194509,1.325,557.55,556.68,0.35927283]
[1743967198216,1.413,557.54,556.68,0.35927283]
[1743967201416,1.079,557.53,556.68,0.35927283]
[1743967201620,1.079,557.53,556.84,1.32761379]
[1743967201825,1.079,557.53,556.93,1.33871163]
[1743967203524,1.079,557.53,556.68,0.35927283]
[1743967203930,2.46034578,557.53,556.68,0.35927283]
[1743967204423,2.98724297,557.52,556.68,0.35927283]
[1743967204722,0.66217323,557.51,556.68,0.35927283]
[1743967204918,1.38134578,557.5,556.68,0.35927283]
[1743967205116,3.6494162,557.5,556.68,0.35927283]
[1743967205318,2.98724297,557.49,556.68,0.35927283]
[1743967205523,2.26818171,557.48,556.68,0.35927283]
[1743967205719,1.38134578,557.49,556.68,0.35927283]
[1743967205924,2.2684011,557.52,556.68,0.35927283]
[1743967206117,1.60616664,557.52,556.68,0.35927283]
[1743967206327,3.64971147,557.52,556.68,0.35927283]
[1743967206524,2.26836569,557.51,556.68,0.35927283]
[1743967206724,1.38134578,557.51,556.68,0.35927283]
[1743967207024,2.46034578,557.53,556.68,0.35927283]
[1743967208525,1.079,557.53,556.68,0.35927283]
[1743967210921,2.46133601,557.53,556.68,0.35927283]
[1743967211622,1.60640588,557.52,556.68,0.35927283]
[1743967211826,1.079,557.53,556.68,0.35927283]
[1743967212529,0.825,557.52,556.68,0.35927283]
[1743967221133,2.20786487,557.52,556.68,0.35927283]
[1743967222036,1.60713473,557.51,556.68,0.35927283]
[1743967222338,2.20786487,557.52,556.68,0.35927283]
[1743967223436,0.825,557.52,556.68,0.35927283]
[1743967224635,1.079,557.53,556.68,0.35927283]
[1743967224934,1.002,557.51,556.68,0.35927283]
[1743967225432,1.002,557.51,556.69,1.33871163]
[1743967225837,1.002,557.51,556.71,0.35925347]
[1743967227632,1.002,557.51,556.74,1.33871163]
[1743967227831,1.187,557.5,556.75,0.35922766]
[1743967229533,1.28,557.49,556.75,0.35922766]
[1743967229738,1.28,557.49,556.81,1.33871163]
[1743967230034,1.28,557.49,556.82,0.3591825]
[1743967232334,1.494,557.48,556.82,0.3591825]
[1743967239744,1.494,557.48,556.88,1.33871163]
[1743967239946,1.494,557.48,556.89,0.35913735]
[1743967240144,1.282,557.47,556.89,0.35913735]
[1743967242652,1.305,557.46,556.89,0.35913735]
[1743967246960,1.305,557.46,556.91,1.33871163]
[1743967247161,1.305,557.46,556.92,0.359118]
[1743967252264,1.214,557.45,556.98,1.33871163]
[1743967254164,1.214,557.45,556.92,0.359118]
[1743967254360,1.214,557.45,556.65,1.33871163]
[1743967254667,1.214,557.45,556.65,1.69800382]
[1743967255563,2.59372418,557.45,556.65,1.69800382]
[1743967255767,0.66106759,557.44,556.65,1.69800382]
[1743967255977,2.04079177,557.44,556.65,1.69800382]
[1743967256179,1.60328208,557.43,556.65,1.69800382]
[1743967256370,3.64407385,557.43,556.65,1.69800382]
[1743967256571,2.26434967,557.42,556.65,1.69800382]
[1743967256871,2.26434967,557.42,556.65,0.35929219]
[1743967257068,2.36772418,557.41,556.65,0.35929219]
[1743967257279,0.988,557.41,556.65,0.35929219]
[1743967260478,0.995,557.4,556.65,0.35929219]
[1743967269590,1.38228586,557.39,556.65,0.35929219]
[1743967269889,2.98862607,557.39,556.65,0.35929219]
[1743967270290,1.38228586,557.38,556.65,0.35929219]
[1743967270789,1.38228586,557.37,556.65,0.35929219]
[1743967271183,3.65089017,557.37,556.65,0.35929219]
[1743967271384,2.26860431,557.36,556.65,0.35929219]
[1743967271683,1.38228586,557.35,556.65,0.35929219]
[1743967271893,3.65089017,557.35,556.65,0.35929219]
[1743967272090,3.65089017,557.34,556.25,1.33871163]
[1743967272291,2.26860431,557.33,556.25,1.33871163]
[1743967272591,2.26860431,557.33,556.26,0.35954409]
[1743967272787,1.38228586,557.32,556.26,0.35954409]